Cogmind - Beta 13 --- EXPLORER MODE // 2024.07.28 @ 00:39:40 Player: mrjoebobfred Result: Self-destructed Performance ------------- Evolutions (1) 500 Regions Visited (2) 400 Robots Destroyed (0) 0 Value Destroyed (0) 0 Prototype IDs (0) 0 Alien Tech Used (0) 0 Bonus (200) 200 TOTAL SCORE: 1100 Bonus ------- Pacifist 200 Cogmind --------- Core Integrity 330/400 Matter 300/300 Energy 250/250 System Corruption 0% Temperature Cool (0) Movement Treading (160) Location -9/Materials Parts ------- > --- POWER (1) -------- Ion Engine > --- PROPULSION (3) --- Light Treads Light Treads Light Treads > --- UTILITY (4) ------ Medium Storage Unit Targeting Computer Hardened Light Armor Plating > --- WEAPON (2) ------- (None) > --- INVENTORY (10) --- Ion Engine Aluminum Leg Aluminum Leg Targeting Computer Peak State ------------ > --- POWER ------------ Ion Engine > --- PROPULSION ------- Light Treads Light Treads Light Treads > --- UTILITY ---------- Medium Storage Unit Targeting Computer Hardened Light Armor Plating > --- WEAPON ----------- (None) > --- INVENTORY -------- Ion Engine Aluminum Leg Aluminum Leg Targeting Computer [Rating: 8] Favorites ----------- Power Ion Engine Engine Ion Engine Propulsion Light Treads Treads Light Treads Utility Targeting Computer Storage Medium Storage Unit Processor Targeting Computer Protection Hardened Light Armor Plating Weapon None Build | -11 -10 -9 ------- Run | Yrd Mat Mat Slots Evolved 3 | . 1 2 Power . | . . . Propulsion 1 | . . 1 Utility 2 | . 1 1 Weapon . | . . . Parts Attached 7 | 5 . 2 Power 1 | 1 . . Engine 1 | 1 . . Core . | . . . Reactor . | . . . Propulsion 3 | 2 . 1 Treads 3 | 2 . 1 Leg . | . . . Wheel . | . . . Hover . | . . . Flight . | . . . Utility 3 | 2 . 1 Device . | . . . Storage 1 | 1 . . Processor 1 | 1 . . Hackware . | . . . Protection 1 | . . 1 Artifact . | . . . Weapon . | . . . Energy Gun . | . . . Energy Cannon . | . . . Ballistic Gun . | . . . Ballistic Cannon . | . . . Launcher . | . . . Special Weapon . | . . . Impact Weapon . | . . . Slashing Weapon . | . . . Piercing Weapon . | . . . Special Melee Weapon . | . . . Unidentified Prototypes . | . . . Parts Lost . | . . . Power . | . . . Propulsion . | . . . Utility . | . . . Weapon . | . . . Highest Loss Streak . | . . . To Critical Strikes . | . . . Average Slot Usage (%) 64 | . 62 66 Engine 11 | . 12 10 Treads 26 | . 25 28 Storage 11 | . 12 10 Processor 11 | . 12 10 Protection 3 | . . 8 Naked Turns . | . . . Heaviest Build 20 | 15 15 20 Greatest Support 60 | 40 40 60 Greatest Overweight (x) 1 | 1 . . Average Overweight (x) . | . . . Largest Inventory Capacity 10 | 10 10 10 Average Capacity 9 | 8 10 10 Most Carried 4 | 4 4 4 Average Carried 3 | 1 4 4 Final Capacity 10 | 10 10 10 Final Carried 4 | 4 4 4 Class Distribution -------------------- 100% | Hacker-Mutant Dominant Class ---------------- Hacker-Mutant | -10/Materials Hacker-Mutant | -9/Materials Resources | -11 -10 -9 ----------- Run | Yrd Mat Mat Matter Collected 275 | 227 23 25 Remotely . | . . . Salvage Created . | . . . Parts . | . . . Haulers Intercepted . | . . . Recyclers Shooed . | . . . Parts Field Recycled . | . . . Retrieved Matter . | . . . Parts Self-Destructed . | . . . Prevented . | . . . Kills | -11 -10 -9 ------- Run | Yrd Mat Mat Combat Hostiles Destroyed . | . . . Classes Destroyed . | . . . Best Kill Streak . | . . . Combat Bots Only . | . . . Max Kills in Single Turn . | . . . Gunslinging . | . . . Exploded . | . . . Melee . | . . . Uniques/NPCs Destroyed . | . . . Combat | -11 -10 -9 -------- Run | Yrd Mat Mat Hostile Shots Fired 122 | . 15 107 Missed 33 | . 4 29 Damage Taken 454 | . 85 369 Core 107 | . 37 70 Absorbed by Shields . | . . . Ignored by Resistances 323 | . 53 270 Core Remaining (%) 92 | 100 85 . Volleys Fired . | . . . Largest . | . . . Hottest . | . . . Shots Fired . | . . . Gun . | . . . Cannon . | . . . Launcher . | . . . Special . | . . . Kinetic . | . . . Thermal . | . . . Explosive . | . . . Electromagnetic . | . . . Robot Hit Streak . | . . . Robot Miss Streak . | . . . Penetration Max . | . . . Secondary Targets . | . . . Shots Hit Robots . | . . . Core Hits . | . . . Critical Kills . | . . . Critical Parts Destroyed . | . . . Critical Strikes . | . . . Melee Attacks . | . . . Impact . | . . . Slashing . | . . . Piercing . | . . . Sneak Attacks . | . . . Combat Hostiles . | . . . Follow-up Attacks . | . . . Damage Inflicted . | . . . Guns . | . . . Cannons . | . . . Explosions . | . . . Melee . | . . . Ramming . | . . . Kinetic . | . . . Thermal . | . . . Explosive . | . . . Electromagnetic . | . . . Impact . | . . . Slashing . | . . . Piercing . | . . . Highest Corruption 1 | . 1 . Average Corruption 1 | . 1 . Corruption Purged . | . . . Corruption Blocked . | . . . Effects 1 | . 1 . Matter Fused 1 | . 1 . Overload Shots . | . . . Overflow Damage . | . . . Projectiles . | . . . Explosions . | . . . Melee . | . . . Knockbacks . | . . . Impact . | . . . Kinetic . | . . . Secondary . | . . . Self-Inflicted Damage . | . . . Shots . | . . . Rammed . | . . . Targets Rammed . | . . . Kicked . | . . . Crushed . | . . . Highest Temperature . | . . . Average Temperature . | . . . Received Heat Transfer 78 | . 78 . Siege Activations . | . . . Robots Corrupted . | . . . Combat Hostiles . | . . . Parts Fried . | . . . Impact Corruptions . | . . . Robots Melted . | . . . Combat Hostiles . | . . . Parts Melted . | . . . Heat Transferred . | . . . Parts Sabotaged . | . . . Parts Stolen . | . . . Parts Stripped . | . . . Power Chain Reactions . | . . . Alert | -11 -10 -9 ------- Run | Yrd Mat Mat Peak Influence 38 | . 38 11 Initial 11 | . . 11 Average 11 | . 17 11 Maximum Alert Level . | . . . Low Security (%) 100 | 100 100 100 Level 1 . | . . . Level 2 . | . . . Level 3 . | . . . Level 4 . | . . . Level 5 . | . . . High Security . | . . . Max Security . | . . . Squads Dispatched . | . . . Investigation . | . . . Extermination . | . . . Reinforcement . | . . . Assault . | . . . Garrison . | . . . Intercept . | . . . Searches Triggered . | . . . Construction Impeded . | . . . Haulers Reinforced . | . . . Active Scanning Responses . | . . . Cargo Convoy Interrupts . | . . . Stealth | -11 -10 -9 --------- Run | Yrd Mat Mat Distress Signals 1 | . 1 . Communications Jammed . | . . . Distress Signals . | . . . Times Spotted 11 | . 5 6 Peak Tracking Total 6 | . 3 6 Tactical Retreats 1 | . 1 . Traps | -11 -10 -9 ------- Run | Yrd Mat Mat Traps Triggered 1 | . 1 . Indirectly . | . . . Trap Hack Attempts . | . . . Triggered . | . . . Disarmed . | . . . Reprogrammed . | . . . Reused . | . . . Traps Extracted . | . . . Installed . | . . . Triggered . | . . . Machines | -11 -10 -9 ---------- Run | Yrd Mat Mat Machines Disabled . | . . . Max in Single Turn . | . . . Machines Repaired . | . . . Machines Dismantled . | . . . Machines Sabotaged . | . . . Overloaded Fab Kills . | . . . Hacking | -11 -10 -9 --------- Run | Yrd Mat Mat Machines Accessed 1 | . 1 . Terminals 1 | . 1 . Fabricators . | . . . Repair Stations . | . . . Recycling Units . | . . . Scanalyzers . | . . . Garrison Access . | . . . Total Hacks 6 | . 6 . Successful 4 | . 4 . Failed 2 | . 2 . Catastrophic . | . . . Database Lockouts . | . . . Manual 3 | . 3 . Terminals 6 | . 6 . Fabricators . | . . . Repair Stations . | . . . Recycling Units . | . . . Scanalyzers . | . . . Garrison Access . | . . . Terminal Hacks 3 | . 3 . Locate Traps 1 | . 1 . Registered Components 1 | . 1 . Zone Layout 1 | . 1 . Fabricator Hacks . | . . . Repair Station Hacks . | . . . Recycling Unit Hacks . | . . . Scanalyzer . | . . . Garrison Access Hacks . | . . . Unauthorized Hacks 1 | . 1 . Terminals 1 | . 1 . Botnet 1 | . 1 . Fabricators . | . . . Repair Stations . | . . . Recycling Units . | . . . Scanalyzers . | . . . Garrison Access . | . . . Data Cores Recovered . | . . . Used . | . . . Hacking Detections 1 | . 1 . Full Trace Events . | . . . Feedback Events . | . . . Feedback Blocked . | . . . Robot Schematics Acquired . | . . . Robots Built . | . . . Authchips . | . . . Time . | . . . Total Robot Build Rating . | . . . Part Schematics Acquired . | . . . Parts Built . | . . . Authchips . | . . . Time . | . . . Total Part Build Rating . | . . . Parts Repaired . | . . . Time . | . . . Parts Recycled . | . . . Recycled Matter . | . . . Retrieved Matter . | . . . Retrieved Components . | . . . Parts Scanalyzed . | . . . Part Schematics Acquired . | . . . Parts Damaged . | . . . Bothacking | -11 -10 -9 ------------ Run | Yrd Mat Mat Used RIF Installer . | . . . Robots Hacked . | . . . Non-combat . | . . . Combat . | . . . Robot Hacks Applied . | . . . Relay Couplers Released . | . . . Fabnet Peak Effective % . | . . . Robots Rewired . | . . . Allies Hacked . | . . . Hacks Repelled . | . . . Allies | -11 -10 -9 -------- Run | Yrd Mat Mat Total Allies . | . . . Largest Group . | . . . Highest-Rated Group . | . . . Highest-Rated Ally . | . . . Total Orders . | . . . Ally Attacks . | . . . Total Damage . | . . . Kills . | . . . Allies Corrupted . | . . . Allies Melted . | . . . Intel | -11 -10 -9 ------- Run | Yrd Mat Mat Robot Analysis Total . | . . . Derelict Logs Recovered . | . . . Drone Launches . | . . . Drone Recoveries . | . . . Exploration | -11 -10 -9 ------------- Run | Yrd Mat Mat Turns Passed 357 | 72 149 136 Spaces Moved 218 | 41 94 83 Core 5 | 5 . . Treads 213 | 36 94 83 Legs . | . . . Wheels . | . . . Hover . | . . . Flight . | . . . Fastest Speed 50 | 50 160 160 Average Speed 158 | 150 160 160 Slowest Speed 160 | 160 160 160 Overloaded Moves . | . . . Propulsion Burnouts . | . . . Robots Hopped . | . . . Cave-ins Triggered . | . . . Exploration Rate (%) 15 | 4 27 15 Regions Visited 2 Branch Regions . Pre-discovered Areas . | . . . Known Exits Taken 2 | 1 1 . Unknown Exits Taken . | . . . Scrap Searched . | . . . Spaces Dug . | . . . Terrain Destroyed . | . . . Melee . | . . . Projectile . | . . . AOE . | . . . Terrain Rammed . | . . . Walls Destroyed . | . . . Machines Disabled . | . . . Actions | -11 -10 -9 --------- Run | Yrd Mat Mat Total 227 | 49 93 85 Wait . | . . . Move 216 | 40 93 83 Hop . | . . . Pick Up 4 | 4 . . Fast Attach 7 | 5 . 2 Attach . | . . . Detach . | . . . Swap . | . . . Drop . | . . . Fire . | . . . Melee . | . . . Ram . | . . . Kick . | . . . Crush . | . . . Escape Stasis . | . . . Rewire . | . . . Trap . | . . . Miscellaneous . | . . . Route ------- -11/Scrapyard -10/Materials -9/Materials History --------- Turn | Location | Event 43 | -11/Scrapyard | Identified exit to Materials 43 | -11/Scrapyard | Discovered exit to Materials (range 15) 73 | -11/Scrapyard | Entered Materials 73 | -10/Materials | Evolved 1 slot: Utility x1 198 | -10/Materials | Identified exit to Materials 198 | -10/Materials | Discovered exit to Materials (range 16) 222 | -10/Materials | Entered another Materials area 222 | -9/Materials | Evolved 2 slots: Propulsion x1, Utility x1 307 | -9/Materials | Build established: Hacker-Mutant 358 | -9/Materials | Self-destructed Last Messages --------------- T-07 Excavator is excavating. Acquired Lgt. Treads. Acquired Hrd. Light Armor Plating. Acquired 25 matter. T-07 Excavator is excavating. U-05 Engineer lays Concrete. T-07 Excavator is excavating. U-05 Engineer lays Concrete. K-01 Serf collects debris. K-01 Serf cleans the Pressure Siphon. T-07 Excavator is excavating. K-01 Serf collects debris. T-07 Excavator is excavating. K-01 Serf collects debris. U-05 Engineer lays Concrete. T-07 Excavator is excavating. U-05 Engineer lays Concrete. T-07 Excavator is excavating. S-10 Pest destroyed. K-01 Serf cleans the Pressure Siphon. Map ----- +----------------------------------------------------+ | # #???????????????????????????????? | | + #???????????????????????????????? | | # #???????????????????????????????? | | # ########## #???????????????????????????????? | | # ########?# #???????????????????????????????? | | # # #?# #???????????????????????????????? | | # # #?# #???????????????????????????????? | | # # #?# #???????????????????????????????? | | + / [#?# #???????????????????????????????? | | # # %=[#?# #???????????????????????????????? | | # # ] #?# #???????????????????????????????? | | # ########?# #???????????????????????????????? | | #????????# #??? ??????????????????????????? | | #????????# ####+#######????????????????????? | | #?????##?# ??????????????????? | | #?????# # ^ ^ ??????????????????? | | #?????# # """ """ """???????????????????? | | #?????# """ """ """ ?????????????????? | | #?????## # """ """ """ ?????????????????? | | #####??????### """ """ """ ?????????????????? | | ?????????????# ?????????????????? | | ?????????????# ?????????????????? | | ?????????????# ??????????????????? | | ??????????#####+###s #####+#####?????????????? | | ??????????# # # #?????????????? | | ??????????# + ss @ a #?????????????? | | ??????????# #s #### """ k #?????????????? | | ??????????#########* #??? """"" ???????????????? | | ???????????????#####/#####? """""????????????????? | | ???????????????# #? """"?????????????????? | | ???????????????# #?? """?????????????????? | | ???????????????# #?? ?????????????????? | | ???????????????# #???###?????????????????? | | ???????????????# #???????????????????????? | | ???????????????# #???????????????????????? | | ???????????????# | #???????????????????????? | | ???????????????# #???????????????????????? | | ???????????????#######+###???????????????????????? | | ?????????????????????????????????????????????????? | | ?????????????????????????????????????????????????? | | ?????????????????????????????????????????????????? | | ?????????????????????????????????????????????????? | | ?????????????????????????????????????????????????? | | ?????????????????????????????????????????????????? | | ?????????????????????????????????????????????????? | | ?????????????????????????????????????????????????? | | ?????????????????????????????????????????????????? | | ?????????????????????????????????????????????????? | | ?????????????????????????????????????????????????? | | ?????????????????????????????????????????????????? | +----------------------------------------------------+ Best States ------------- Heat Dissipation 28 Energy Generation 10 Energy Capacity 250 Matter Stores 300 Matter Capacity 300 Sight Range 16 Terrain Scan Density 10 Armor Coverage 150 Resistance: KI 35 Resistance: TH 35 Resistance: EX 35 Resistance: EM 35 Resistance: I 35 Resistance: S 35 Resistance: P 35 Evasion (%) 40 Targeting Accuracy 5 Recoil Reduction 3 Offensive Hacking 20 Item Schematics ----------------- None Robot Schematics ------------------ None Fabricated ------------ Nothing Alien Tech Used ----------------- None Achievements -------------- None Challenges ------------ None Game ------ Seed RagnarokLobotomyCorpse Manual? 0 Play Time 00:04:14 Cumulative 423.2 hours Start 2024.07.28 @ 00:35:17 End 2024.07.28 @ 00:39:40 Sessions 1 Manual Loads 0 Difficulty Explorer Special Mode None Game No. 43 Rogue 6 Adventurer 6 Explorer 31 Win Type - Total 30 Types 12/5/2/5/0/1/1/3/1 Lore% 86 Gallery% 83 Achievement% 85 Wizard Run 0 Options --------- Layout 1 ASCII 0 Keyboard 0 Movement Mouse Keybinds 0 Fullscreen 1 Font 24/Smallcaps Map View 50x35 Zoom Use 0% Tactical HUD 0 Map Filters NONE Filters NONE Steam 1 RUN: 9a78b815-8ac9-4eb5-86bb-b2528caf5b55